bitfinex/quotes_ETHUSD_20250620
["timestamp","ask_amount","ask_price","bid_price","bid_amount"]
[1750426314234,10.8089,2556.6,2555.8,3.91254539]
[1750426314235,14.72048654,2556.6,2555.8,3.91254539]
[1750426314561,0.8318,2556.3,2555.8,3.91263905]
[1750426314856,8.079,2556.2,2555.9,3.91247699]
[1750426315034,8.079,2556.2,2555.4,3.91328167]
[1750426315035,8.079,2556.2,2555.5,0.03912642]
[1750426315236,8.079,2556.2,2555.9,3.91243269]
[1750426315645,8.079,2556.2,2555.7,3.91279637]
[1750426315955,8.079,2556.2,2556.1,3.91221]
[1750426316323,8.079,2556.2,2556.0,3.91228229]
[1750426316749,8.079,2556.2,2555.9,3.91246102]
[1750426316958,8.079,2556.2,2556.0,3.91229421]
[1750426317135,8.079,2556.2,2556.1,3.91221]
[1750426317339,1.66,2556.2,2556.1,3.91212084]
[1750426319345,10.89825397,2556.7,2555.7,4.71260388]
[1750426319346,0.8298,2557.0,2555.8,0.03912319]
[1750426319545,10.0,2556.7,2556.3,3.91187792]
[1750426319754,10.0,2556.7,2556.5,3.91151463]
[1750426319941,10.0,2556.7,2556.4,3.91168063]
[1750426320141,10.0,2556.7,2556.5,3.91157313]
[1750426320340,10.0,2556.7,2555.9,3.91251613]
[1750426320650,0.8298,2557.0,2556.9,3.91098595]
[1750426320829,2.4898,2557.0,2556.9,3.91098595]
[1750426321025,11.048,2557.1,2557.0,3.910833]
[1750426321257,1.66,2557.1,2557.0,3.910833]
[1750426322742,6.428,2557.6,2557.3,3.91037422]
[1750426322743,1.66,2557.4,2557.3,3.91037422]
[1750426323161,0.7548,2557.7,2556.9,4.73237066]
[1750426323162,0.7548,2557.7,2557.0,3.91081139]
[1750426323462,1.678,2557.9,2557.2,3.91052713]
[1750426323665,1.678,2557.9,2557.1,0.47322114]
[1750426323871,10.8094,2558.0,2557.1,0.47322114]
[1750426323872,10.8094,2558.0,2557.2,3.91052713]
[1750426324052,1.678,2557.9,2557.8,3.90953349]
[1750426324365,0.8141,2558.3,2557.9,3.90940444]
[1750426324550,0.8141,2558.3,2558.1,3.9090162]
[1750426324551,2.4921,2558.3,2558.1,3.9090162]
[1750426324750,1.678,2558.3,2558.2,3.90899851]
[1750426324941,1.678,2558.3,2557.6,3.90980834]
[1750426325137,1.678,2558.3,2558.0,3.9092211]
[1750426325363,1.678,2558.3,2557.7,3.9097227]
[1750426325669,5.58686417,2558.3,2557.7,3.9096433]
[1750426325960,0.8242,2558.2,2557.8,3.909554]
[1750426326133,0.8242,2558.2,2557.9,3.90938476]
[1750426326333,0.8224,2558.4,2557.4,10.7624]
[1750426326534,1.678,2558.2,2558.1,3.9090767]
[1750426327051,1.678,2558.2,2558.0,3.90921388]
[1750426327255,1.678,2558.2,2557.8,3.90955103]
[1750426327462,1.678,2558.2,2558.0,3.9092951]
[1750426327862,1.678,2558.2,2557.7,3.90966535]
[1750426328066,1.92804,2558.2,2557.8,3.90953394]
[1750426328435,1.92804,2558.2,2557.8,3.90953184]
[1750426328877,1.92804,2558.2,2557.8,3.90959147]
[1750426329081,18.14665397,2558.1,2557.2,0.8202]
[1750426329370,18.14665397,2558.1,2557.4,3.91021036]
[1750426329371,3.90952628,2557.9,2557.4,3.91021036]
[1750426329673,3.91014681,2557.5,2557.0,3.91072866]
[1750426329877,0.8224,2557.7,2556.5,6.43]
[1750426329878,1.678,2557.4,2556.5,6.43]
[1750426330038,1.678,2557.4,2557.2,3.91046006]
[1750426330239,1.678,2557.4,2557.3,3.91037422]
[1750426331343,1.678,2557.9,2556.9,10.8011]
[1750426331552,1.678,2557.9,2557.7,3.90965695]
[1750426332212,1.678,2557.9,2557.3,3.91037422]
[1750426332213,1.678,2557.9,2557.8,3.90960982]
[1750426332596,1.678,2557.9,2557.6,3.90985286]
[1750426332597,1.678,2557.9,2557.7,3.90970457]
[1750426332917,1.678,2557.9,2557.7,3.90968276]
[1750426333292,1.678,2557.9,2557.8,3.90960982]
[1750426333494,1.678,2557.9,2557.7,3.90969058]
[1750426333994,1.678,2557.9,2557.0,4.460833]
[1750426334314,1.678,2557.9,2557.1,1.5261933]
[1750426334516,0.7698,2557.6,2556.9,0.8011]
[1750426334681,0.7698,2557.6,2557.0,3.91074308]
[1750426335019,0.36354098,2557.5,2557.2,3.91038236]
[1750426335225,0.7698,2557.6,2556.9,0.8011]
[1750426335226,1.678,2557.4,2557.3,3.91037422]
[1750426337116,1.678,2557.4,2557.2,3.91045962]
[1750426337300,1.678,2557.4,2557.1,3.91062207]
[1750426337512,1.678,2557.4,2557.2,3.91044314]
[1750426337727,1.678,2557.4,2557.2,3.91043386]
[1750426337898,1.678,2557.4,2557.3,3.91037422]
[1750426338580,0.7698,2557.6,2557.5,3.91006842]
[1750426338782,1.13338837,2557.6,2557.5,3.91006842]
[1750426338982,8.874,2557.8,2557.5,3.91006842]
[1750426339224,0.36351607,2557.7,2557.4,3.91012843]
[1750426339389,8.874,2557.8,2556.9,0.8011]
[1750426339390,2.443,2557.8,2557.5,3.90999491]
[1750426339590,3.90901084,2558.2,2557.5,3.90999491]
[1750426339591,1.678,2558.2,2558.1,3.90907541]
[1750426339893,1.678,2558.2,2557.5,0.7558]
[1750426339894,2.04146006,2558.2,2557.5,0.7558]
[1750426340094,0.8061,2558.0,2557.5,0.7558]
[1750426340421,0.8061,2558.0,2557.8,3.90952372]
[1750426340786,0.8061,2558.0,2557.5,0.7558]
[1750426341220,1.678,2558.0,2557.9,3.90945697]
[1750426341407,0.8061,2558.2,2558.1,3.90915132]
[1750426341614,2.4841,2558.2,2558.0,3.90927546]
[1750426342133,16.433,2558.4,2557.8,0.03909254]
[1750426342134,1.678,2558.4,2557.8,0.03909254]
[1750426342312,1.678,2558.4,2558.1,3.90906558]
[1750426342521,1.678,2558.4,2558.3,3.90877176]
[1750426342891,1.678,2558.4,2558.2,3.90892042]
[1750426343093,1.678,2558.4,2557.6,3.90991554]
[1750426343332,1.678,2558.4,2558.0,3.90924616]
[1750426343626,1.678,2558.4,2557.9,3.90932834]
[1750426343933,14.32197527,2558.2,2557.9,3.90932834]
[1750426344099,0.7953,2558.6,2558.2,3.90891867]
[1750426344296,18.47522046,2558.5,2558.1,3.90908608]
[1750426344501,0.36322046,2558.4,2558.1,3.90908608]
[1750426344714,0.36322046,2558.4,2558.0,3.90924971]
[1750426344929,4.27191888,2558.4,2557.9,3.90938243]
[1750426345134,3.90869842,2558.4,2557.9,3.90938243]
[1750426345429,3.90870739,2558.4,2557.9,3.90937239]
[1750426345617,36.3426298,2558.5,2558.0,3.90923762]
[1750426345927,36.3426298,2558.5,2557.9,3.9093893]
[1750426345928,4.27211877,2558.4,2557.9,3.9093893]
[1750426346115,3.90873724,2558.4,2557.9,3.9093893]
[1750426346630,0.783,2558.2,2557.9,3.90944241]
[1750426347127,0.783,2558.2,2557.8,3.90955588]
[1750426347346,0.783,2558.2,2557.9,3.90933776]
[1750426347520,0.783,2558.2,2558.0,3.90930067]
[1750426348777,0.783,2558.2,2558.1,3.90915132]
[1750426349054,33.19297527,2558.5,2558.1,3.90915132]
[1750426349255,0.36423319,2558.4,2558.0,3.90923542]
[1750426349454,0.36486259,2558.3,2558.1,3.90905939]
[1750426349764,1.678,2558.3,2558.2,3.90899851]
[1750426349966,2.04285262,2558.3,2558.2,3.90899851]
[1750426350117,0.36485262,2558.3,2558.2,3.90899851]
[1750426350473,1.678,2558.7,2558.6,3.90838739]
[1750426350773,1.678,2558.9,2558.8,3.90808191]
[1750426350916,2.04322174,2558.9,2558.8,3.90808191]
[1750426351491,6.17046437,2558.9,2558.3,3.90877]
[1750426351692,6.17046437,2558.9,2558.0,4.72247655]
[1750426351693,0.36521511,2558.8,2558.6,3.90838409]
[1750426351859,0.36514351,2558.7,2558.5,3.90846795]
[1750426352065,0.36513754,2558.6,2558.5,3.90846795]
[1750426352467,0.36513754,2558.6,2558.0,4.72242778]
[1750426352685,3.90866006,2558.5,2558.1,0.47224278]
[1750426353008,0.7663,2558.3,2557.9,3.90933899]
[1750426353165,0.7663,2558.3,2557.8,3.90948546]
[1750426353166,0.36513793,2558.2,2557.8,3.90948546]
[1750426353512,3.90936771,2558.0,2557.4,0.8132]
[1750426353783,15.08827527,2557.8,2557.1,4.72383406]
[1750426353990,0.36538834,2557.7,2557.2,3.91052713]
[1750426354195,0.36538834,2557.7,2557.1,4.72377901]
[1750426354196,0.36538834,2557.6,2557.1,4.7238593]
[1750426354375,0.36538834,2557.5,2557.0,3.91073244]
[1750426354561,0.36540017,2557.4,2556.8,0.8132]
[1750426354761,0.36540017,2557.3,2556.8,0.8132]
[1750426354974,4.27599504,2557.2,2556.7,3.91114751]
[1750426355174,0.36540017,2557.1,2556.5,0.8132]
[1750426355387,2.05140017,2557.1,2556.8,3.91107551]
[1750426355555,1.686,2557.1,2556.9,3.91098467]
[1750426355756,1.686,2557.1,2556.8,3.91108467]
[1750426355996,1.686,2557.1,2556.5,0.8132]
[1750426356291,5.59676512,2557.1,2556.5,5.19721612]
[1750426356457,3.91106147,2556.9,2556.4,3.91166464]
[1750426356860,3.91100057,2556.9,2556.4,3.91166464]
[1750426357163,3.91100057,2556.9,2556.4,3.91174307]
[1750426357164,3.91108393,2556.9,2556.4,3.91174307]
[1750426357686,0.36522617,2556.8,2556.3,3.91180142]
[1750426357872,3.91110167,2556.9,2556.4,3.91172871]
[1750426358075,4.27645729,2556.8,2556.3,3.91182572]
[1750426358279,3.91105211,2556.9,2556.4,3.91166858]
[1750426358594,3.91123498,2556.8,2556.3,3.91184063]
[1750426358771,3.91108391,2556.9,2556.4,3.91172345]
[1750426359167,4.27605159,2556.8,2556.3,3.91189751]
[1750426359371,3.91106847,2556.9,2556.3,3.91189751]
[1750426359585,0.36481081,2556.8,2556.4,3.91170334]
[1750426359788,3.91105753,2556.9,2556.4,3.91170334]
[1750426360097,3.91144488,2556.6,2555.9,3.91240494]
[1750426360295,3.91144488,2556.6,2555.7,0.7626]
[1750426360296,2.05073821,2556.5,2555.7,0.7626]
[1750426360599,5.59767597,2556.5,2556.0,3.91235539]
[1750426361157,0.7503,2556.7,2556.3,3.91182347]
[1750426361365,8.50876954,2556.6,2556.2,3.91203537]
[1750426361564,8.50876954,2556.6,2555.7,5.14283425]
[1750426361565,8.144,2556.6,2556.3,3.91188695]
[1750426361770,8.144,2556.6,2556.3,3.91187217]
[1750426361975,8.144,2556.6,2556.2,3.91198616]
[1750426362695,8.144,2556.6,2555.6,3.91289046]
[1750426362859,3.91187173,2556.4,2555.8,3.91255662]
[1750426363396,3.91189088,2556.4,2555.8,3.91255662]
[1750426363696,3.91189088,2556.4,2555.6,3.91283594]
[1750426363697,3.91222161,2556.1,2555.6,3.91283594]
[1750426363897,3.9121295,2556.2,2555.7,3.91281444]
[1750426364191,4.66349022,2555.9,2555.3,3.74640911]
[1750426364395,4.66349022,2555.9,2555.4,3.91320268]
[1750426364594,0.7509,2555.9,2555.3,3.74640911]
[1750426364820,0.7509,2555.9,2555.4,3.91326706]
[1750426364957,1.687,2555.8,2555.4,3.91326706]
[1750426365354,1.687,2555.8,2555.3,3.74640911]
[1750426365355,0.7509,2555.9,2555.6,3.91297542]
[1750426365683,1.687,2555.8,2555.5,3.91304711]
[1750426365885,1.687,2556.1,2555.6,0.8254]
[1750426366100,1.687,2556.1,2555.9,3.91250523]
[1750426366287,1.687,2556.1,2555.8,3.91259183]
[1750426366801,1.687,2556.1,2555.9,3.9124788]
[1750426367100,1.687,2556.1,2555.8,3.91258326]
[1750426367267,1.687,2556.1,2555.6,3.91285964]
[1750426367461,1.687,2556.1,2555.5,3.91307565]
[1750426367462,1.687,2556.1,2555.4,0.03912797]
[1750426367666,1.687,2556.1,2555.6,3.91285422]
[1750426367982,1.687,2556.1,2555.5,3.91312854]
[1750426367983,1.687,2556.1,2555.9,3.91236782]
[1750426368189,1.687,2556.1,2555.9,3.91240543]
[1750426368401,1.687,2556.1,2555.7,3.91271268]
[1750426368705,1.687,2556.1,2555.8,3.91256536]
[1750426368902,1.687,2556.1,2556.0,3.91236306]
[1750426369202,1.687,2556.1,2555.9,3.91242883]
[1750426369361,1.687,2556.1,2555.3,4.50800911]
[1750426369562,1.687,2556.1,2555.8,3.91259679]
[1750426370219,1.687,2556.1,2555.9,3.91250361]
[1750426370531,1.687,2556.1,2556.0,3.91236306]
[1750426370892,1.687,2556.1,2555.9,3.91243878]
[1750426371526,1.687,2556.1,2555.9,3.9124449]
[1750426371820,1.687,2556.2,2556.0,3.91221808]
[1750426372024,1.687,2556.2,2556.1,3.91221]
[1750426373225,1.687,2556.4,2556.3,3.9117557]
[1750426373809,1.687,2556.4,2556.2,3.9119882]
[1750426374626,1.687,2556.4,2556.3,3.91190392]
[1750426375024,1.687,2556.4,2556.2,3.91196549]
[1750426375315,9.393,2556.6,2556.2,3.9119705]
[1750426375612,1.687,2556.5,2556.4,3.91175089]
[1750426375812,9.393,2556.6,2556.5,3.91159788]
[1750426375813,21.08,2556.6,2556.5,3.91159788]
[1750426376019,9.393,2556.6,2556.5,3.91159788]
[1750426376500,9.393,2556.6,2555.9,3.91238532]
[1750426376683,9.393,2556.6,2556.3,3.91182641]
[1750426376877,9.393,2556.6,2556.4,3.91172663]
[1750426377094,9.393,2556.6,2556.5,3.91159788]
[1750426377894,1.687,2556.7,2556.5,3.91159788]
[1750426378611,1.687,2556.7,2556.4,3.91167145]
[1750426379322,1.687,2556.7,2555.9,1.11236853]
[1750426379525,1.687,2556.7,2556.4,3.91174654]
[1750426380306,1.687,2556.7,2556.3,3.91177171]
[1750426380488,1.687,2556.7,2556.4,3.91174903]
[1750426381232,1.687,2556.7,2556.1,3.951327]
[1750426381388,1.687,2556.7,2556.3,3.91181551]
[1750426381585,1.687,2556.7,2556.4,3.91173862]
[1750426381821,1.687,2556.7,2556.5,3.91157568]
[1750426381987,1.687,2556.7,2556.4,3.91166173]
[1750426382320,16.84988706,2556.7,2555.9,3.91251613]
[1750426382523,14.3368006,2556.4,2556.1,3.91220385]
[1750426382726,20.7898006,2556.4,2555.8,0.7543]
[1750426382926,0.36518431,2556.3,2556.1,3.91210629]
[1750426383100,20.7898006,2556.4,2556.1,3.91210629]
[1750426383434,6.453,2556.4,2556.3,3.91190392]
[1750426383727,6.81826312,2556.4,2556.3,3.91190392]
[1750426384298,6.81826312,2556.4,2556.2,3.91199659]
[1750426384488,0.36526057,2556.3,2556.2,3.91199659]
[1750426384694,6.453,2556.4,2555.8,4.66694682]
[1750426384895,6.453,2556.4,2556.2,3.91198193]
[1750426385149,6.453,2556.4,2556.1,3.91219923]
[1750426385150,6.453,2556.4,2556.3,3.91190392]
[1750426385347,6.8182665,2556.4,2556.3,3.91190392]
[1750426385500,6.8182665,2556.4,2556.2,3.91196352]
[1750426385700,6.453,2556.4,2556.2,3.91196352]
[1750426385901,0.36571612,2556.3,2556.2,3.91196352]
[1750426386546,0.36571612,2556.3,2555.8,1.86619468]
[1750426386757,0.36571692,2556.2,2555.5,0.7867]
[1750426387046,0.36571692,2556.2,2555.8,3.91265619]
[1750426387047,1.19199653,2556.1,2555.8,3.91265619]
[1750426387199,0.36569653,2556.0,2555.8,3.91265619]
[1750426387421,0.8263,2556.1,2555.8,3.91265619]
[1750426387645,0.7992,2556.4,2556.1,3.91210142]
[1750426387939,1.693,2556.2,2556.1,3.91210142]
[1750426388106,0.3656969,2556.2,2556.1,3.91221]
[1750426388507,1.693,2556.7,2556.6,3.91144488]
[1750426388814,0.36583552,2556.7,2556.6,3.91144488]
[1750426390208,0.36583552,2556.7,2556.5,3.91156592]
[1750426390209,0.36583552,2556.7,2556.5,3.91146816]
[1750426390401,0.36581136,2556.6,2556.4,3.9116765]
[1750426390599,0.36581581,2556.5,2556.4,3.91166378]
[1750426390832,6.45,2556.7,2556.5,3.91144972]
[1750426391038,0.36582088,2556.6,2556.5,3.91144972]
[1750426391628,6.45,2556.7,2556.6,3.91144488]
[1750426391933,6.81579399,2556.7,2556.6,3.91144488]
[1750426392244,6.81579166,2556.7,2556.5,3.91151297]
[1750426392541,6.45,2556.7,2556.5,3.91151297]
[1750426392836,0.36574164,2556.6,2556.5,3.91151297]
[1750426393336,1.693,2556.8,2556.7,3.9111847]
[1750426393634,2.05875228,2556.8,2556.5,3.91153201]
[1750426393807,0.36575228,2556.7,2556.5,3.91153201]
[1750426394007,0.36575228,2556.6,2556.5,3.91153201]
[1750426394216,0.36575228,2556.6,2555.9,0.7522]
[1750426394441,19.94102354,2556.8,2555.9,0.7522]
[1750426394442,0.36575228,2556.5,2556.3,3.91179796]
[1750426394745,0.7639,2556.5,2556.3,3.91179796]
[1750426394967,0.36585721,2556.4,2556.3,3.91179796]
[1750426395438,0.36585721,2556.4,2556.0,3.91236306]
[1750426395439,0.3658608,2556.4,2556.0,3.91236306]
[1750426395745,0.7639,2556.5,2555.9,0.7522]
[1750426395746,0.7639,2556.5,2556.2,3.91201544]
[1750426395953,0.36585882,2556.4,2556.3,3.91190392]
[1750426396116,0.36585478,2556.4,2556.3,3.91190392]
[1750426396328,0.36585478,2556.6,2556.2,3.91197404]
[1750426396533,20.69270686,2556.8,2556.3,3.91179691]
[1750426396534,0.36586088,2556.5,2556.3,3.91179691]
[1750426396851,20.69270686,2556.8,2556.4,3.91175038]
[1750426397055,0.36585762,2556.7,2556.3,3.91182197]
[1750426397232,0.36585463,2556.6,2556.4,3.91174442]
[1750426397434,0.36585463,2556.5,2556.0,0.03911928]
[1750426397632,20.69270686,2556.8,2556.3,3.91190392]
[1750426397633,0.36585463,2556.4,2556.3,3.91190392]
[1750426397834,20.69270686,2556.8,2556.4,3.91171168]
[1750426398059,0.36598723,2556.7,2556.4,3.91171168]
[1750426398260,0.36598723,2556.6,2556.4,3.91171168]
[1750426398425,0.36598723,2556.5,2556.4,3.91171168]
[1750426398826,0.36598723,2556.5,2556.3,3.91182137]
[1750426399022,0.36598723,2556.4,2556.3,3.91182137]
[1750426400465,16.7815006,2556.8,2556.4,3.91170685]
[1750426400646,0.73227032,2556.7,2556.4,3.91170685]
[1750426400834,0.36613516,2556.6,2556.5,3.91157772]
[1750426401042,2.05913516,2556.6,2556.5,3.91157772]
[1750426401774,2.05913516,2556.6,2555.9,0.7522]
[1750426401775,1.693,2556.6,2555.9,0.7522]
[1750426401952,0.36613585,2556.5,2556.3,3.91183069]
[1750426402272,1.693,2556.6,2556.3,3.91183069]
[1750426402273,0.36613662,2556.4,2556.3,3.91183069]
[1750426402634,1.693,2556.6,2556.5,3.91159788]
[1750426402836,2.05927832,2556.6,2556.5,3.91159788]
[1750426403250,2.05927832,2556.6,2556.4,3.91168754]
[1750426403449,0.36629555,2556.5,2556.4,3.91168754]
[1750426403677,0.36629603,2556.5,2556.4,3.91168754]
[1750426403882,1.693,2556.6,2556.5,3.91159788]
[1750426404040,0.36630448,2556.6,2556.5,3.91159788]
[1750426404580,1.693,2556.8,2556.6,3.911421]
[1750426404761,0.36633825,2556.7,2556.6,3.91144488]
[1750426404967,1.693,2556.8,2556.7,3.91129189]
[1750426405172,2.05934135,2556.8,2556.6,3.91140861]
[1750426405373,0.36633265,2556.7,2556.6,3.91140861]
[1750426405571,0.36634314,2556.7,2556.6,3.91140861]
[1750426405751,1.693,2556.8,2556.6,3.91140861]
[1750426405952,0.36634207,2556.7,2556.5,3.91154596]
[1750426406182,0.36634207,2556.6,2556.5,3.91154596]
[1750426406343,0.36634207,2556.6,2556.4,4.67361613]
[1750426406543,0.36634207,2556.5,2556.3,3.9117751]
[1750426406744,5.60419846,2556.8,2556.3,3.9117751]
[1750426406745,3.91129358,2556.7,2556.3,3.9117751]
[1750426406944,0.36634359,2556.6,2556.3,3.9117751]
[1750426407168,0.36634359,2556.5,2556.3,3.9117751]
[1750426407484,5.60421994,2556.8,2556.3,3.91179392]
[1750426407642,3.9115271,2556.6,2556.1,0.821]
[1750426407842,0.36632062,2556.5,2556.3,3.91189084]
[1750426408042,0.36632062,2556.4,2556.3,3.91189084]
[1750426408242,0.36632062,2556.4,2556.2,3.91195755]
[1750426408469,0.36632062,2556.4,2556.1,4.73316215]
[1750426408470,3.91134134,2556.7,2556.3,3.91189962]
[1750426408667,19.94102501,2556.8,2556.3,3.91189962]
[1750426408980,4.86370285,2556.7,2556.3,3.91189962]
[1750426409184,0.36628669,2556.6,2556.2,3.91199021]
[1750426409368,0.36628669,2556.5,2556.3,3.91189389]
[1750426409683,0.36628669,2556.4,2556.3,3.91189389]
[1750426409871,0.36632965,2556.4,2556.3,3.91189389]
[1750426410046,0.36633104,2556.4,2556.3,3.91189389]
[1750426410444,0.36630054,2556.4,2556.3,3.91189389]
[1750426410883,0.36630054,2556.4,2556.2,3.91198409]
[1750426411059,0.797,2556.6,2556.3,3.91188177]
[1750426411386,0.36630201,2556.5,2556.3,3.91188177]
[1750426411588,0.797,2556.6,2556.3,3.91188177]
[1750426411760,0.36629878,2556.5,2556.3,3.91188177]
[1750426411963,0.36629878,2556.4,2556.2,3.91200368]
[1750426412284,0.797,2556.6,2556.2,3.91200368]
[1750426412485,10.70802275,2556.5,2556.0,3.91226465]
[1750426412666,0.36633189,2556.4,2556.2,3.91205318]
[1750426412987,2.05933189,2556.3,2556.2,3.91205318]
[1750426413184,0.797,2556.6,2556.3,3.91180955]
[1750426413388,0.36642059,2556.5,2556.4,3.91175089]
[1750426413748,0.36642059,2556.5,2556.4,4.69915089]
[1750426414154,0.36642059,2556.5,2556.3,3.91181892]
[1750426414354,11.693,2556.8,2556.4,3.91175089]
[1750426414691,0.7328806,2556.7,2556.5,3.91159405]
[1750426414891,0.3664403,2556.6,2556.4,3.91166858]
[1750426415191,0.36642972,2556.5,2556.4,3.91166858]
[1750426416065,0.36642972,2556.5,2556.3,3.95101276]
[1750426416066,1.681,2556.8,2556.7,3.91126109]
[1750426416264,2.63408657,2556.8,2556.5,3.91148712]
[1750426416463,0.36657176,2556.7,2556.5,3.91148712]
[1750426416664,0.36657176,2556.6,2556.5,3.91159788]
[1750426417150,1.681,2556.8,2556.6,3.91136719]
[1750426417351,0.3665101,2556.7,2556.6,3.91136719]
[1750426417594,0.36651389,2556.7,2556.5,3.91151259]
[1750426417777,0.36651389,2556.6,2556.3,3.91190392]
[1750426418092,0.36651389,2556.5,2556.3,3.91190392]
[1750426418296,0.36651389,2556.4,2556.3,3.91190392]
[1750426418490,0.7706,2556.6,2556.3,3.91190392]
[1750426418696,0.7706,2556.6,2556.2,3.91203539]
[1750426418697,0.36649532,2556.5,2556.4,3.91174351]
[1750426418897,0.36649486,2556.5,2556.4,3.91174351]
[1750426419093,0.36649486,2556.5,2556.3,3.91189425]
[1750426419094,0.36649486,2556.5,2556.3,3.91183012]
[1750426419265,2.4869,2556.8,2556.3,3.91183012]
[1750426419266,0.36649486,2556.4,2556.3,3.91183012]
[1750426419669,0.36649486,2556.4,2556.3,4.69421626]
[1750426419872,1.681,2556.9,2556.4,0.8094]
[1750426420194,0.36651407,2556.8,2556.6,3.91136062]
[1750426420353,0.36651407,2556.8,2556.4,4.7210829]
[1750426420354,0.36645837,2556.7,2556.5,3.91152178]
[1750426420555,1.681,2556.9,2556.5,3.91152178]
[1750426420556,0.36645837,2556.6,2556.5,3.91152178]
[1750426420785,1.681,2556.9,2556.6,3.91141717]
[1750426420988,0.36645751,2556.8,2556.6,3.91141717]
[1750426421197,0.36645751,2556.7,2556.4,0.8094]
[1750426421393,0.36645751,2556.6,2556.5,3.91159669]
[1750426421771,0.36647465,2556.6,2556.5,3.91159669]
[1750426422155,0.36650628,2556.6,2556.5,3.91159669]
[1750426422357,0.36650628,2556.6,2556.4,3.91167688]
[1750426422671,5.59205141,2556.9,2556.5,3.91159788]
[1750426422881,0.952911,2556.8,2556.5,3.91159788]
[1750426423198,0.36650423,2556.7,2556.5,3.91159788]
[1750426423374,0.36651685,2556.6,2556.5,3.91159788]
[1750426423702,0.36651685,2556.6,2556.4,3.91167455]
[1750426423860,5.59205141,2556.9,2556.4,3.91167455]
[1750426423861,0.36651685,2556.5,2556.4,3.91167455]
[1750426424473,1.681,2556.9,2556.5,3.91145842]
[1750426424672,0.95289092,2556.8,2556.5,3.91145842]
[1750426424873,0.36649649,2556.7,2556.5,3.91145842]
[1750426425158,21.94869709,2556.6,2556.0,3.91234485]
[1750426425353,3.91175089,2556.4,2555.8,3.91252821]
[1750426425601,3.91175089,2556.4,2555.7,4.74447209]
[1750426425602,2.04749649,2556.3,2555.7,0.8317]
[1750426425801,3.91276962,2555.8,2555.3,3.74640911]
[1750426425960,5.10179063,2555.7,2555.3,3.74640911]
[1750426426159,5.10179063,2555.7,2555.3,7.65982795]
[1750426426160,0.36649649,2555.6,2555.3,7.65982795]
[1750426426395,0.36649649,2555.5,2555.3,7.65982795]
[1750426426567,0.36649649,2555.5,2555.3,3.74640911]
[1750426426568,25.04357876,2555.4,2555.3,3.74640911]
[1750426426910,3.91351165,2555.3,2554.8,3.91407107]
[1750426427200,2.04733739,2555.2,2554.9,3.91395319]
[1750426427360,0.36633344,2555.1,2554.9,3.91395319]
[1750426427562,0.36633344,2555.0,2554.9,3.91395319]
[1750426428292,1.681,2555.2,2555.0,3.9138658]
[1750426428493,8.117,2555.3,2555.1,3.91366854]
[1750426428697,1.681,2555.3,2555.1,3.91366854]
[1750426428909,1.681,2555.3,2555.1,3.91373637]
[1750426429078,1.681,2555.3,2555.0,4.69671857]
[1750426429806,1.681,2555.3,2555.1,3.91368782]
[1750426429964,0.8224,2555.7,2555.0,0.7829]
[1750426430165,1.681,2555.8,2555.5,3.91304857]
[1750426430764,1.681,2555.8,2555.4,3.91319733]
[1750426431258,1.681,2555.8,2555.4,3.91326577]
[1750426431796,1.681,2555.8,2555.0,4.69677354]
[1750426431797,5.59380073,2555.8,2555.1,3.91374114]
[1750426432000,5.59380073,2555.8,2555.3,3.91341873]
[1750426432301,5.59380073,2555.8,2555.2,3.91357769]
[1750426432302,1.681,2555.8,2555.4,3.91325662]
[1750426433096,1.681,2555.8,2555.4,3.91325528]
[1750426433304,18.24941218,2555.9,2555.4,3.91325528]
[1750426433807,8.117,2555.8,2555.5,3.91309884]
[1750426434173,8.117,2555.7,2555.5,3.91309884]
[1750426434369,8.117,2555.7,2555.4,3.91328158]
[1750426434574,8.117,2555.7,2555.5,3.91304716]
[1750426434775,8.117,2555.7,2555.4,3.91321814]
[1750426435376,8.117,2555.7,2555.0,0.7829]
[1750426435377,3.91336455,2555.4,2555.0,0.7829]
[1750426435689,3.91336455,2555.4,2554.9,3.91397186]
[1750426435690,3.91321337,2555.5,2554.9,3.91398195]
[1750426435895,3.91321337,2555.5,2554.5,3.9146604]
[1750426435896,3.91321337,2555.5,2555.0,3.91388063]
[1750426436407,3.91321337,2555.5,2554.9,3.91397524]
[1750426436611,3.91329195,2555.4,2554.4,0.7604]
[1750426436768,10.34844163,2555.3,2554.7,3.91425341]
[1750426437102,5.59568916,2555.2,2554.7,3.91425341]
[1750426437266,5.59568916,2555.2,2554.4,0.7604]
[1750426437467,14.3368006,2555.0,2554.4,0.7604]
[1750426437678,18.25076901,2555.0,2554.5,3.91459048]
[1750426437881,18.25076901,2555.0,2554.6,3.91448244]
[1750426438117,18.25082787,2555.0,2554.5,3.91458869]
[1750426438318,6.434,2554.9,2554.4,3.91473586]
[1750426438517,6.434,2554.9,2554.5,3.91463781]
[1750426438836,0.8208,2554.8,2554.5,3.91463781]
[1750426439122,1.682,2554.7,2554.2,0.7512]
[1750426439322,1.682,2554.7,2554.2,3.9150166]
[1750426439496,5.59643384,2554.7,2554.2,3.9150166]
[1750426439830,3.91459266,2554.6,2554.1,3.91519039]
[1750426440136,6.435,2554.5,2554.2,3.91506345]
[1750426440434,1.682,2554.7,2554.5,3.91455703]
[1750426440791,1.682,2554.7,2554.3,0.7885]
[1750426441089,1.682,2554.7,2554.4,3.91471766]
[1750426441294,0.7521,2554.2,2553.3,0.2145719]
[1750426441490,12.03737928,2554.1,2553.4,4.70694181]
[1750426441690,15.0889006,2553.9,2553.3,0.2145719]
[1750426441928,10.0,2554.1,2553.4,4.67403209]
[1750426441929,1.797,2554.1,2553.4,4.67403209]
[1750426442131,8.431,2554.1,2553.6,3.91592498]
[1750426442317,3.91558009,2553.9,2553.3,0.2145719]
[1750426442523,10.0,2553.9,2553.3,0.2145719]
[1750426442838,15.1062006,2554.0,2553.3,0.2145719]
[1750426442839,10.0,2553.6,2553.3,0.2145719]
[1750426443007,12.35019345,2553.5,2553.3,0.2145719]
[1750426443338,1.798,2553.4,2553.3,0.2145719]
[1750426445838,1.798,2553.4,2553.3,4.13107211]
[1750426446033,1.798,2553.4,2553.3,0.2145719]
[1750426446438,1.798,2553.4,2553.3,4.13107211]
[1750426446638,8.436,2553.4,2553.3,4.13107211]
[1750426447362,8.435,2553.4,2553.3,4.13107211]
[1750426448273,8.431,2553.4,2553.3,4.13107211]